Cogmind - Beta 14 @@@ ROGUE MODE // 2024.12.30 @ 02:00:31 // Winter2022/Polymind Player: Alien Result: Self-destructed Performance ------------- Evolutions (1) 500 Regions Visited (3) 600 Robots Destroyed (28) 140 Value Destroyed (288) 288 Prototype IDs (0) 0 Alien Tech Used (0) 0 Bonus (1600) 1600 TOTAL SCORE: 2848 Bonus ------- Polymind Skill 1600 Cogmind --------- Core Integrity 250/400 Matter 0/0 Energy 10/100 System Corruption 0% Temperature Cool (0) Movement Core (50) Location -9/Materials Parts ------- > --- POWER (1) -------- (None) > --- PROPULSION (2) --- (None) > --- UTILITY (2) ------ (None) > --- WEAPON (0) ------- (None) > --- INVENTORY (0) ---- (None) Peak State ------------ > --- POWER ------------ Improved Ion Engine > --- PROPULSION ------- Light Treads Light Treads > --- UTILITY ---------- Heat Sink Heat Sink Light Armor Plating > --- WEAPON ----------- Beam Rifle Heavy Assault Rifle > --- INVENTORY -------- (None) [Rating: 11] Favorites ----------- Power Improved Ion Engine Engine Improved Ion Engine Propulsion Light Treads Treads Light Treads Wheel Compact Wheel Flight Unit Flight Unit Utility Heat Sink Device Heat Sink Storage Small Storage Unit Processor Terrain Scan Processor Protection Light Armor Plating Weapon Beam Rifle Energy Gun Beam Rifle Ballistic Gun Heavy Assault Rifle Special Weapon Welding Torch Build | -11 -10 -10 -9 ------- Run | Yrd Mat Min Mat Slots Evolved . | . . . . Power . | . . . . Propulsion . | . . . . Utility . | . . . . Weapon . | . . . . Parts Attached . | . . . . Power . | . . . . Engine . | . . . . Core . | . . . . Reactor . | . . . . Propulsion . | . . . . Treads . | . . . . Leg . | . . . . Wheel . | . . . . Hover . | . . . . Flight . | . . . . Utility . | . . . . Device . | . . . . Storage . | . . . . Processor . | . . . . Hackware . | . . . . Protection . | . . . . Artifact . | . . . . Weapon . | . . . . Energy Gun . | . . . . Energy Cannon . | . . . . Ballistic Gun . | . . . . Ballistic Cannon . | . . . . Launcher . | . . . . Special Weapon . | . . . . Impact Weapon . | . . . . Slashing Weapon . | . . . . Piercing Weapon . | . . . . Special Melee Weapon . | . . . . Unidentified Prototypes . | . . . . Parts Lost 1 | . . . 1 Power . | . . . . Propulsion 1 | . . . 1 Utility . | . . . . Weapon . | . . . . Highest Loss Streak 1 | . . . 1 To Critical Strikes . | . . . . Average Slot Usage (%) 90 | . . 57 97 Engine 12 | . . 14 12 Treads 19 | . . . 21 Wheel 2 | . . . 2 Flight 2 | . . 28 . Device 21 | . . . 23 Storage 1 | . . . 1 Protection 9 | . . . 10 Energy Gun 9 | . . . 10 Ballistic Gun 10 | . . 14 10 Peak Build Rating 11 | . . 4 11 Average Rating 9 | . . 2 10 On Entrance 1 | . . . 4 Naked Turns 95 | . 54 32 9 Heaviest Build 18 | . . 4 18 Greatest Support 40 | 3 3 8 40 Greatest Overweight (x) . | . . . . Average Overweight (x) . | . . . . Largest Inventory Capacity 4 | . . . 4 Average Capacity 1 | . . . 1 Most Carried 4 | . . . 4 Average Carried . | . . . . Final Capacity . | . . . . Final Carried . | . . . . Class Distribution -------------------- 77% | Sentry 8% | Cogmind 7% | Recycler 5% | Swarmer Dominant Class ---------------- Cogmind | -10/Materials Swarmer | -10/Mines Sentry | -9/Materials Resources | -11 -10 -10 -9 ----------- Run | Yrd Mat Min Mat Matter Collected 216 | . . . 216 Remotely . | . . . . Salvage Created 874 | . . 18 856 Parts 53 | . . 4 49 Haulers Intercepted 3 | . . . 3 Recyclers Shooed 2 | . . . 2 Parts Field Recycled . | . . . . Retrieved Matter . | . . . . Parts Self-Destructed . | . . . . Prevented . | . . . . Kills | -11 -10 -10 -9 ------- Run | Yrd Mat Min Mat Combat Hostiles Destroyed 11 | . . 2 9 Guns 11 | . . 2 9 Classes Destroyed 7 | . . 1 6 Worker 8 | . . . 8 Builder 2 | . . . 2 Tunneler 1 | . . . 1 Hauler 3 | . . . 3 Recycler 3 | . . . 3 Swarmer 7 | . . 2 5 Grunt 4 | . . . 4 Best Kill Streak 11 | . . 2 11 Combat Bots Only 6 | . . 2 6 Max Kills in Single Turn 2 | . . 1 2 Gunslinging . | . . . . Exploded . | . . . . Melee . | . . . . Uniques/NPCs Destroyed . | . . . . Combat | -11 -10 -10 -9 -------- Run | Yrd Mat Min Mat Hostile Shots Fired 61 | . 1 11 49 Missed 19 | . . 6 13 Damage Taken 495 | . 14 41 440 Core 188 | . 14 24 150 Absorbed by Shields . | . . . . Core Remaining (%) 92 | 100 . 84 . Volleys Fired 77 | . . 5 72 Largest 2 | . . 1 2 Hottest 79 | . . 20 79 Shots Fired 149 | . . 5 144 Gun 149 | . . 5 144 Cannon . | . . . . Launcher . | . . . . Special . | . . . . Kinetic 77 | . . 5 72 Thermal 72 | . . . 72 Explosive . | . . . . Electromagnetic . | . . . . Robot Hit Streak 10 | . . 1 10 Robot Miss Streak 4 | . . 1 4 Penetration Max . | . . . . Secondary Targets 2 | . . . 2 Max Gunslinging Chain 1 | . . . 1 Shots Hit Robots 87 | . . 3 84 Core Hits 34 | . . 3 31 Critical Kills . | . . . . Critical Parts Destroyed . | . . . . Critical Strikes 8 | . . . 8 Burn 8 | . . . 8 Melee Attacks . | . . . . Impact . | . . . . Slashing . | . . . . Piercing . | . . . . Sneak Attacks . | . . . . Combat Hostiles . | . . . . Follow-up Attacks . | . . . . Damage Inflicted 1361 | . . 29 1332 Guns 1359 | . . 29 1330 Cannons . | . . . . Explosions . | . . . . Melee . | . . . . Ramming 2 | . . . 2 Kinetic 649 | . . 29 620 Thermal 710 | . . . 710 Explosive . | . . . . Electromagnetic . | . . . . Impact . | . . . . Slashing . | . . . . Piercing . | . . . . Highest Corruption . | . . . . Average Corruption . | . . . . Corruption Purged . | . . . . Corruption Blocked . | . . . . Overload Shots . | . . . . Overflow Damage . | . . . . Projectiles . | . . . . Explosions . | . . . . Melee . | . . . . Knockbacks . | . . . . Impact . | . . . . Kinetic . | . . . . Secondary . | . . . . Self-Inflicted Damage 1 | . . . 1 Shots . | . . . . Rammed 1 | . . . 1 Targets Rammed 1 | . . . 1 Kicked . | . . . . Crushed . | . . . . Highest Temperature 23 | . . 18 23 Average Temperature 11 | . . 9 12 Received Heat Transfer 183 | . 9 . 174 Siege Activations . | . . . . Robots Corrupted . | . . . . Combat Hostiles . | . . . . Parts Fried . | . . . . Impact Corruptions . | . . . . Robots Melted . | . . . . Combat Hostiles . | . . . . Parts Melted 4 | . . . 4 Heat Transferred 2405 | . . . 2405 Parts Sabotaged . | . . . . Parts Stolen . | . . . . Parts Stripped . | . . . . Power Chain Reactions . | . . . . Alert | -11 -10 -10 -9 ------- Run | Yrd Mat Min Mat Peak Influence 217 | . 7 52 217 Initial 20 | . . 2 20 Average 78 | . 4 26 87 Maximum Alert Level 1 | . . . 1 Low Security (%) 98 | 100 100 100 98 Level 1 1 | . . . 1 Level 2 . | . . . . Level 3 . | . . . . Level 4 . | . . . . Level 5 . | . . . . High Security . | . . . . Max Security . | . . . . Squads Dispatched 3 | . 1 . 2 Investigation 1 | . . . 1 Extermination . | . . . . Reinforcement 2 | . 1 . 1 Assault . | . . . . Garrison . | . . . . Intercept . | . . . . Searches Triggered . | . . . . Construction Impeded . | . . . . Haulers Reinforced . | . . . . Active Scanning Responses . | . . . . Cargo Convoy Interrupts . | . . . . Stealth | -11 -10 -10 -9 --------- Run | Yrd Mat Min Mat Distress Signals . | . . . . Communications Jammed . | . . . . Distress Signals . | . . . . Times Spotted 29 | . 5 5 19 Peak Tracking Total 4 | . 4 3 2 Tactical Retreats . | . . . . Traps | -11 -10 -10 -9 ------- Run | Yrd Mat Min Mat Traps Triggered . | . . . . Indirectly . | . . . . Trap Hack Attempts . | . . . . Triggered . | . . . . Disarmed . | . . . . Reprogrammed . | . . . . Reused . | . . . . Traps Extracted . | . . . . Installed . | . . . . Triggered . | . . . . Machines | -11 -10 -10 -9 ---------- Run | Yrd Mat Min Mat Machines Disabled 2 | . . . 2 Max in Single Turn 1 | . . . 1 Machines Repaired . | . . . . Machines Dismantled . | . . . . Machines Sabotaged . | . . . . Overloaded Fab Kills . | . . . . Hacking | -11 -10 -10 -9 --------- Run | Yrd Mat Min Mat Machines Accessed 4 | . 1 . 3 Terminals 3 | . 1 . 2 Fabricators . | . . . . Repair Stations . | . . . . Recycling Units 1 | . . . 1 Scanalyzers . | . . . . Garrison Access . | . . . . Total Hacks 8 | . 2 . 6 Successful 3 | . 1 . 2 Failed 5 | . 1 . 4 Catastrophic 1 | . 1 . . Database Lockouts . | . . . . Manual 3 | . . . 3 Terminals 6 | . 2 . 4 Fabricators . | . . . . Repair Stations . | . . . . Recycling Units 2 | . . . 2 Scanalyzers . | . . . . Garrison Access . | . . . . Terminal Hacks 2 | . 1 . 1 Branch Access Points 1 | . 1 . . Terminal Index 1 | . . . 1 Fabricator Hacks . | . . . . Repair Station Hacks . | . . . . Recycling Unit Hacks 1 | . . . 1 Process 1 | . . . 1 Scanalyzer . | . . . . Garrison Access Hacks . | . . . . Unauthorized Hacks . | . . . . Terminals . | . . . . Fabricators . | . . . . Repair Stations . | . . . . Recycling Units . | . . . . Scanalyzers . | . . . . Garrison Access . | . . . . Data Cores Recovered . | . . . . Used . | . . . . Hacking Detections 2 | . . . 2 Full Trace Events 1 | . . . 1 Feedback Events . | . . . . Feedback Blocked . | . . . . Robot Schematics Acquired . | . . . . Robots Built . | . . . . Authchips . | . . . . Time . | . . . . Total Robot Build Rating . | . . . . Part Schematics Acquired . | . . . . Parts Built . | . . . . Authchips . | . . . . Time . | . . . . Total Part Build Rating . | . . . . Parts Repaired . | . . . . Time . | . . . . Parts Recycled . | . . . . Recycled Matter 220 | . . . 220 Retrieved Matter . | . . . . Retrieved Components . | . . . . Parts Scanalyzed . | . . . . Part Schematics Acquired . | . . . . Parts Damaged . | . . . . Bothacking | -11 -10 -10 -9 ------------ Run | Yrd Mat Min Mat Used RIF Installer . | . . . . Robots Hacked 5 | . . 1 4 Non-combat 3 | . . . 3 Combat 2 | . . 1 1 Robot Hacks Applied 5 | . . 1 4 map_walls 1 | . . . 1 find_recycling 2 | . . . 2 find_shortcuts 2 | . . 1 1 Relay Couplers Released . | . . . . Fabnet Peak Effective % . | . . . . Robots Rewired . | . . . . Allies Hacked . | . . . . Hacks Repelled . | . . . . Allies | -11 -10 -10 -9 -------- Run | Yrd Mat Min Mat Total Allies . | . . . . Largest Group . | . . . . Highest-Rated Group . | . . . . Highest-Rated Ally . | . . . . Total Orders . | . . . . Ally Attacks . | . . . . Total Damage . | . . . . Kills . | . . . . Allies Corrupted . | . . . . Allies Melted . | . . . . Intel | -11 -10 -10 -9 ------- Run | Yrd Mat Min Mat Robot Analysis Total 4 | . . 1 3 Derelict Logs Recovered 1 | . . 1 . Drone Launches . | . . . . Drone Recoveries . | . . . . Exploration | -11 -10 -10 -9 ------------- Run | Yrd Mat Min Mat Turns Passed 1161 | 9 54 72 1026 Spaces Moved 532 | 18 108 145 261 Core 203 | 18 108 60 17 Treads 102 | . . . 102 Legs . | . . . . Wheels 80 | . . . 80 Hover . | . . . . Flight 147 | . . 85 62 Fastest Speed 37 | 50 50 37 37 Average Speed 74 | 50 50 42 104 Slowest Speed 160 | 50 50 50 160 Overloaded Moves . | . . . . Propulsion Burnouts . | . . . . Robots Hopped 2 | . . 2 . Cave-ins Triggered . | . . . . Exploration Rate (%) 28 | 3 30 52 28 Regions Visited 3 Branch Regions 1 Pre-discovered Areas . | . . . . Known Exits Taken 2 | . 1 1 . Unknown Exits Taken 1 | 1 . . . Scrap Searched . | . . . . Spaces Dug . | . . . . Terrain Destroyed . | . . . . Melee . | . . . . Projectile . | . . . . AOE . | . . . . Terrain Rammed . | . . . . Walls Destroyed . | . . . . Machines Disabled . | . . . . Actions | -11 -10 -10 -9 --------- Run | Yrd Mat Min Mat Total 1141 | 17 107 148 869 Wait 523 | . . 1 522 Move 525 | 17 107 140 261 Hop 2 | . . 2 . Pick Up 9 | . . . 9 Fast Attach . | . . . . Attach . | . . . . Detach . | . . . . Swap . | . . . . Drop . | . . . . Fire 77 | . . 5 72 Melee . | . . . . Ram 1 | . . . 1 Kick . | . . . . Crush . | . . . . Escape Stasis . | . . . . Rewire . | . . . . Trap . | . . . . Miscellaneous 4 | . . . 4 Route ------- -11/Scrapyard -10/Materials (discovered 2 exits: *Min x2) -10/Mines -9/Materials History --------- Turn | Location | Event 4 | -11/Scrapyard | Discovered new exit (range 14) 10 | -11/Scrapyard | Entered Materials 29 | -10/Materials | Identified exit to Mines 64 | -10/Materials | Entered Mines 71 | -10/Mines | A weapon hastily lodged in a ceiling crevice suddenly fell to the ground 83 | -10/Mines | Met a Derelict bent on vengeance 122 | -10/Mines | Identified exit to Materials 136 | -10/Mines | Entered Materials 1162 | -9/Materials | Self-destructed Last Messages --------------- Wheel (12) Seismic Detector (7) Med. Matter Pod (8) Transport Network Coupler (7) Med. Storage Unit (80) EM Shotgun (25) 01123_ Recycling unit begins matter transfer process. 01125_ Connecting with Recycling Unit... 01131_ R-06 Scavenger collects Lgt. Ion Engine. 01133_ Released control of R-06 Scavenger. 01134_ Took control of R-06 Scavenger. 01135_ R-06 Scavenger reactivates. 01135_ R-06 Scavenger collects EM Shotgun. 01136_ Acquired Prototype Energy Cannon. 01140_ Acquired Lgt. Treads. 01140_ R-06 Scavenger collects EM Shotgun. 01147_ R-06 Scavenger collects Particle Gun. 01151_ R-06 Scavenger collects Aluminum Leg. 01155_ R-06 Scavenger collects Ion Engine. 01162_ Released control of R-06 Scavenger. Map ----- +----------------------------------------------------+ | ????????????????????????# ???# [ ?????????????? | | ????????????????????????# ???# #??????????????? | | ????????????????????????# ???#] ###########????? | | ????????????????????????# ??"# # = #????? | | ????????????????????????# """#% !# [ #????? | | ????????????????????????# "" # # #?||?? | | ????????????????????????# """# # """ #????? | | ????????????????????????# """# %%# """ "" #?||?? | | ????????????????????????# """#= + """ Y" #????? | | ????????????????????????# " # %# """ "" #????? | | ????????????????????????# #% # #???? | | ???????????????????????####+###!==############### | | ???????????????????????# T Yr= = % = | | ???????????????????????# ! % % % | | ??????????????########## ! % %%% | | ?????????????? ! # %= ########## ### | | ??????????????? # !%% #????????# #?? | | ????????????????"" """ # !! %#????????# #?? | | ????????????????"" """ + =*! #????????# ### | | ????????????????"" """ # =% #?######## + | | ?????????????# # * #?# "T" # # | | ?????????????# # #?# # # | | ?????????????# # ]]! % #?# + +? | | ?????????????########### %]!! #?# """ # ### | | ???????????????????????# ]!! #?# """ # #?? | | ???????????????[???????#r@ #?# """ # #?? | | ???????????????????????# ########## #?? | | ???????????????????????# # " | | ???????????????????????# + " | | ???????????????????????# # | | ???????????????????????# """ ########### #?? | | ???????????????????????# """ #?????????# #?? | | ???????????????????????# #????????## #?? | | ???????????!???????????# #????????## ### | | ??????????????????????? #????????## ### | | ??????????????????????? ?? #????????## ### | | ??????????????????????? ????? #????????## | | ???????????????????????#####?????? ?????????## | | ????????????????????????????????????????????## | | ????????????????????????????????????????????## | | ???????????????????????????????????????????### | | ??????????????????????????????????????????######## | | ??????????????????????????????????????????# | | ??????????????????????????????????????????## " | | ???????????????????????????????????????????# """ | | ???????????????????????????????????????????# """ | | ???????????????????????????????????????????# """ | | ???????????????????????????????????????????# | | ???????????????????????????????????????????####### | | ?????????????????????????????????????????????????? | +----------------------------------------------------+ Best States ------------- Heat Dissipation 36 Energy Generation 17 Energy Capacity 215 Matter Stores 100 Matter Capacity 100 Sight Range 16 Terrain Scan Density 10 Armor Coverage 150 Resistance: EX 50 Resistance: I 25 Evasion (%) 62 Recoil Reduction 2 Item Schematics ----------------- None Robot Schematics ------------------ None Fabricated ------------ Nothing Alien Tech Used ----------------- None Achievements -------------- None Challenges ------------ None Polymind | -11 -10 -10 -9 ---------- Run | Yrd Mat Min Mat Hosts 5 | . . 1 4 Combat Hostiles 2 | . . 1 1 Allies . | . . . . Unique Host Classes 4 | . . 1 3 Average Host Suspicion 64 | . . 100 63 Unsuspicious Activity 534 | . . . 534 Returns to Shadow 1 | . . . 1 Fuzzy Dispatches . | . . . . Protomatter Created 19 | . . 14 5 Used 44 | . . 6 38 Decayed 16 | . . 11 5 Highest Spend 23 | . . 6 23 Top 5 Hosts by Kills: Y-45 Defender (-9/Materials: 9) S-10 Pest (-10/Mines: 2) Game ------ Seed NullMetafieldLoader Manual? 0 Play Time 00:10:27 Cumulative 56.4 hours Start 2024.12.30 @ 01:53:58 End 2024.12.30 @ 02:00:31 Sessions 1 Manual Loads 0 Difficulty Rogue Special Mode Winter2022/Polymind Game No. 56 Rogue 56 Adventurer 0 Explorer 0 Win Type - Total 1 Types 0/0/0/1/0/0/0/0/0 Lore% 43 Gallery% 43 Achievement% 44 Wizard Run 0 Options --------- Layout 0 ASCII 0 Keyboard 1 Movement Numpad Keybinds 0 Fullscreen 1 Font 24/Smallcaps Map View 76x56 Zoom Use 0% Tactical HUD 1 Map Filters NONE Filters NONE Steam 1 RUN: d98e04cc-99e5-4b27-bcc7-46f7a57dfd4b